{"text_format":"1","workbook":"xlsx","n_sheets":3,"sheets":["I.","obl","zav"],"not_rendered":{"charts":0,"images":0,"macros":1,"external_links":0,"defined_names":1,"comments":0,"pivot_tables":0},"unopened":[],"bounds":{"document_bytes":16777216,"sheet_cells":100000,"rows_first":2000,"rows_last":500,"rows_between":2000,"halvings":0,"cell_chars":16384,"cell_head_chars":4096},"cells_cut":0,"cells_raw":0,"read":"whole","date_system":"1900"}

{"sheet":"I.","index":0,"n_rows":90,"n_cols":12,"rows_kept":90,"cut":false,"hidden":false,"merged":[[89,6,89,8],[11,1,13,1],[11,2,13,2],[11,3,11,7],[7,1,7,7],[89,2,89,4],[88,6,88,8],[88,2,88,4],[1,2,1,4],[2,2,2,8],[87,2,87,4],[87,6,87,8],[1,6,1,9],[12,3,13,3],[12,4,12,7],[11,9,13,9]]}
[null,null,null,null,null,null,null,null,null,null,null,"Приложение №4"]
[{"$f":"IF(ISNA(VLOOKUP(C2,obl!A1:B28,2,FALSE))=TRUE,\"\",(VLOOKUP(C2,obl!A1:B28,2,FALSE)))","v":"05"},"Област","05 Видин                ",null,null,null,{"$f":"IF(MID(C2,1,2)=MID(C3,1,2),\"\",\"избери заведение с код от същата област \")","v":"избери заведение с код от същата област "},null,null,null,null,"към формуляр 365-О"]
[{"$f":"IF(ISNA(VLOOKUP(C3,zav!B1:C196,2,FALSE))=TRUE,\"\",(VLOOKUP(C3,zav!B1:C196,2,FALSE)))","v":""},"Наименование на лечебното или здравно заведение"]
[null,"Година на обработка",2023]
[]
[]
[]
[1,"РЕЗУЛТАТИ ОТ ПРОФИЛАКТИЧНИТЕ ПРЕГЛЕДИ, СЪОБРАЗНО ВЪЗРАСТТА НА ДЕЦАТА"]
[]
[]
[null,null,null,null,null,null,null,null,null,"ХОРИЗОНТАЛЕН КОНТРОЛ:"]
[null,null,"Ши-фър","Възраст на детето",null,null,null,null,null,"к.1=к.2+к.3+к.4+к.5"]
[null,null,null,"Всичко","от тях:"]
[null,null,null,null,"до 1 г.","1 - 2 г.","3 - 6 г.","7 - 17 г."]
[null,"а","б",1,2,3,4,5]
[null,"Обхванати – общо","01",null,null,null,null,null,null,{"$f":"IF(D16=E16+F16+G16+H16,\"\",\"грешка\")","v":""}]
[null,"Открити заболявания - всичко","02",null,null,null,null,null,null,{"$f":"IF(D17=E17+F17+G17+H17,\"\",\"грешка\")","v":""}]
[null,"Туберкулоза (А15-А19) ","03",null,null,null,null,null,null,""]
[null,"Сифилис (A50-A53) ","04",null,null,null,null,null,null,""]
[null,"Гонококова инфекция (A54)","05",null,null,null,null,null,null,""]
[null,"Други хламидийни болести, предавани по полов път (A56)","06",null,null,null,null,null,null,""]
[null,"Болест, предавана от вируса на човешкия имунодефицит [HIV] (B20-B24)","07",null,null,null,null,null,null,""]
[null,"Злокачествени новообразувания (C00-C97)","08",null,null,null,null,null,null,""]
[null,"Болести на кръвта, кръвотворните органи и отделни нарушения, включващи имунния механизъм (D50-D89)","09",null,null,null,null,null,null,""]
[null,"в т.ч.: Желязо-недоимъчна анемия (D50)","10",null,null,null,null,null,null,""]
[null,"Болести на щитовидната жлеза (E00-E07)","11",null,null,null,null,null,null,""]
[null,"Захарен диабет (E10-E14)","12",null,null,null,null,null,null,""]
[null,"Затлъстяване (E66)","13",null,null,null,null,null,null,""]
[null,"Умствена изостаналост (F70-F79)","14",null,null,null,null,null,null,""]
[null,"Разстройства на храненето (F50)","15",null,null,null,null,null,null,""]
[null,"Специфични разстройства в развитието (F80-F83)","16",null,null,null,null,null,null,""]
[null,"Поведенчески и емоционални разстройства с начало, типично за детството и юношеството (F90-F98)","17",null,null,null,null,null,null,""]
[null,"в т.ч.: Тикови разстройства (F95)","18",null,null,null,null,null,null,""]
[null,"Неорганична енуреза (F98.0)","19",null,null,null,null,null,null,""]
[null,"Разстройства със стереотипни движения (F98.4)","20",null,null,null,null,null,null,""]
[null,"Заекване (F98.5)","21",null,null,null,null,null,null,""]
[null,"Епилепсия (G40)","22",null,null,null,null,null,null,""]
[null,"Детска церебрална парализа (G80)","23",null,null,null,null,null,null,""]
[null,"Страбизъм (H49, H50)","24",null,null,null,null,null,null,""]
[null,"Нарушения в рефракцията и акомодацията (H52)","25",null,null,null,null,null,null,""]
[null,"Разстройства на зрението (H53)","26",null,null,null,null,null,null,""]
[null,"Слепота и намалено зрение (H54)","27",null,null,null,null,null,null,""]
[null,"Болести на ухото и мастоидния израстък (H60-H95)","28",null,null,null,null,null,null,""]
[null,"в т.ч.: Глухота (H90, H91)","29",null,null,null,null,null,null,""]
[null,"Остър ревматизъм (I00-I02)","30",null,null,null,null,null,null,""]
[null,"Хронични ревматични болести на сърцето (I05-I09)","31",null,null,null,null,null,null,""]
[null,"Хипертонични болести (I10-I15)","32",null,null,null,null,null,null,""]
[null,"Вазомоторен и алергичен ринит (J30)","33",null,null,null,null,null,null,""]
[null,"Хронични болести на тонзилите и аденоидите (J35)","34",null,null,null,null,null,null,""]
[null,"Пневмонии (J12-J18)","35",null,null,null,null,null,null,""]
[null,"Хроничен бронхит (J41, J42)","36",null,null,null,null,null,null,""]
[null,"Друга хронична обструктивна болест (J44)","37",null,null,null,null,null,null,""]
[null,"Астма (J45, J46)","38",null,null,null,null,null,null,""]
[null,"Язва на стомаха и дванадесетопръстника (K25-K27)","39",null,null,null,null,null,null,""]
[null,"Гастрит и дуоденит (K29)","40",null,null,null,null,null,null,""]
[null,"Хернии (K40-K46)","41",null,null,null,null,null,null,""]
[null,"Хроничен хепатит, некласифициран другаде (K73)","42",null,null,null,null,null,null,""]
[null,"Артропатии (M00-M25)","43",null,null,null,null,null,null,""]
[null,"в т.ч.: Плоско стъпало, придобито (M21.4)","44",null,null,null,null,null,null,""]
[null,"Деформиращи дорзопатии (M40-M43)","45",null,null,null,null,null,null,""]
[null,"в т.ч.: Кифоза и лордоза, Сколиоза (M40, М41)","46",null,null,null,null,null,null,""]
[null,"Гломерулни болести (N00-N08)","47",null,null,null,null,null,null,""]
[null,"Тубулоинтерстициални болести на бъбреците (N10-N16)","48",null,null,null,null,null,null,""]
[null,"в т.ч.: Тубулоинтерстициален нефрит (N10-N12)","49",null,null,null,null,null,null,""]
[null,"Камък в бъбрека и уретера (N20)","50",null,null,null,null,null,null,""]
[null,"Нарушения на менструацията (N91-N92)","51",null,null,null,null,null,null,""]
[null,"Вродени аномалии (пороци на развитието), деформации и хромозомни аберации (Q00-Q99)","52",null,null,null,null,null,null,""]
[null,"в т.ч.: Вродени аномалии (пороци на развитието) на системата на кръвообращението (Q20-Q28)","53",null,null,null,null,null,null,""]
[null,"Недесцендирал тестис (Q53)","54",null,null,null,null,null,null,""]
[null,"Вродени аномалии (пороци на развитието) и деформации на костно-мускулната система (Q65-Q79)","55",null,null,null,null,null,null,""]
[null,"Последици от травми, отравяния и други въздействия на външни причини (T90-T98)","56",null,null,null,null,null,null,""]
[null,"Други","57",null,null,null,null,null,null,""]
[]
["ВЕРТИКАЛЕН КОНТРОЛ:"]
[null,"ш.02= сумата от ш.03 до ш. 09+ш.11 до ш.17+ш.22 до ш.28+ш.30 до ш.43+ш.45+ш.47+ ш.48+ш.50 до ш.52+ш.56+ш.57 ",null,{"$f":"IF(D17=SUM(D18:D24)+SUM(D26:D32)+SUM(D37:D43)+SUM(D45:D58)+D60+D62+D63+D65+D66+D67+D71+D72,\"\",\"грешка\" )","v":""},{"$f":"IF(E17=SUM(E18:E24)+SUM(E26:E32)+SUM(E37:E43)+SUM(E45:E58)+E60+E62+E63+E65+E66+E67+E71+E72,\"\",\"грешка\" )","v":""},"","",""]
[null,"ш.09і ш.10",null,{"$f":"IF(D24<D25,\"грешка\",\"\" )","v":""},{"$f":"IF(E24<E25,\"грешка\",\"\" )","v":""},"","",""]
[null,"ш.17і ш.18+ш.19+ш.20+ш.21",null,{"$f":"IF(D32<D33+D34+D35+D36,\"грешка\",\"\" )","v":""},{"$f":"IF(E32<E33+E34+E35+E36,\"грешка\",\"\" )","v":""},"","",""]
[null,"ш.28і ш.29",null,{"$f":"IF(D43<D44,\"грешка\",\"\" )","v":""},{"$f":"IF(E43<E44,\"грешка\",\"\" )","v":""},"","",""]
[null,"ш.43і ш.44",null,{"$f":"IF(D58<D59,\"грешка\",\"\" )","v":""},{"$f":"IF(E58<E59,\"грешка\",\"\" )","v":""},"","",""]
[null,"ш.45і ш.46",null,{"$f":"IF(D60<D61,\"грешка\",\"\" )","v":""},{"$f":"IF(E60<E61,\"грешка\",\"\" )","v":""},"","",""]
[null,"ш.48і ш.49",null,{"$f":"IF(D63<D64,\"грешка\",\"\" )","v":""},{"$f":"IF(E63<E64,\"грешка\",\"\" )","v":""},"","",""]
[null,"ш.52і ш.53+ш.54+ш.55",null,{"$f":"IF(D67<D68+D69+D70,\"грешка\",\"\" )","v":""},{"$f":"IF(E67<E68+E69+E70,\"грешка\",\"\" )","v":""},"","",""]
[]
[]
[]
[]
[null,"Данни за лицето попълнило е-формуляр"]
[null,"Име и фамилия",null,null,null,null,{"$f":"IF(C88=\"\",\"попълни име и фамилия\",\"\")","v":"попълни име и фамилия"}]
[null,"телефон",null,null,null,null,{"$f":"IF(C89=\"\",\"попълни телефон\",\"\")","v":"попълни телефон"}]
[null,"е-mail",null,null,null,null,{"$f":"IF(C90=\"\",\"попълни e-mail\",\"\")","v":"попълни e-mail"}]

{"sheet":"obl","index":1,"n_rows":28,"n_cols":2,"rows_kept":28,"cut":false,"hidden":true,"merged":[]}
["01 Благоевград          ","01"]
["02 Бургас               ","02"]
["03 Варна                ","03"]
["04 Велико Търново       ","04"]
["05 Видин                ","05"]
["06 Враца                ","06"]
["07 Габрово              ","07"]
["08 Добрич               ","08"]
["09 Кърджали             ","09"]
["10 Кюстендил            ","10"]
["11 Ловеч                ","11"]
["12 Монтана              ","12"]
["13 Пазарджик            ","13"]
["14 Перник               ","14"]
["15 Плевен               ","15"]
["16 Пловдив              ","16"]
["17 Разград              ","17"]
["18 Русе                 ","18"]
["19 Силистра             ","19"]
["20 Сливен               ","20"]
["21 Смолян               ","21"]
["22 София (столица)      ","22"]
["23 София                ","23"]
["24 Стара Загора         ","24"]
["25 Търговище            ","25"]
["26 Хасково              ","26"]
["27 Шумен                ","27"]
["28 Ямбол                ","28"]

{"sheet":"zav","index":2,"n_rows":196,"n_cols":3,"rows_kept":196,"cut":false,"hidden":true,"merged":[]}
["01","01  Индивидуални практики за ПМП - Благоевград","111"]
["01","01  Групови практики за ПМП - Благоевград","131"]
["01","01  Индивидуални практики за СМП - Благоевград","211"]
["01","01  Групови практики за СМП - Благоевград","231"]
["01","01  Медицински центрове - Благоевград","251"]
["01","01  Медико-дентални центрове - Благоевград","270"]
["01","01  Диагностично-консултативни центрове - Благоевград","281"]
["02","02  Индивидуални практики за ПМП - Бургас","111"]
["02","02  Групови практики за ПМП - Бургас","131"]
["02","02  Индивидуални практики за СМП - Бургас","211"]
["02","02  Групови практики за СМП - Бургас","231"]
["02","02  Медицински центрове - Бургас","251"]
["02","02  Медико-дентални центрове - Бургас","270"]
["02","02  Диагностично-консултативни центрове - Бургас","281"]
["03","03  Индивидуални практики за ПМП - Варна","111"]
["03","03  Групови практики за ПМП - Варна","131"]
["03","03  Индивидуални практики за СМП - Варна","211"]
["03","03  Групови практики за СМП - Варна","231"]
["03","03  Медицински центрове - Варна","251"]
["03","03  Медико-дентални центрове - Варна","270"]
["03","03  Диагностично-консултативни центрове - Варна","281"]
["04","04  Индивидуални практики за ПМП - Велико Търново","111"]
["04","04  Групови практики за ПМП - Велико Търново","131"]
["04","04  Индивидуални практики за СМП - Велико Търново","211"]
["04","04  Групови практики за СМП - Велико Търново","231"]
["04","04  Медицински центрове - Велико Търново","251"]
["04","04  Медико-дентални центрове - Велико Търново","270"]
["04","04  Диагностично-консултативни центрове - Велико Търново","281"]
["05","05  Индивидуални практики за ПМП - Видин","111"]
["05","05  Групови практики за ПМП - Видин","131"]
["05","05  Индивидуални практики за СМП - Видин","211"]
["05","05  Групови практики за СМП - Видин","231"]
["05","05  Медицински центрове - Видин","251"]
["05","05  Медико-дентални центрове - Видин","270"]
["05","05  Диагностично-консултативни центрове - Видин","281"]
["06","06  Индивидуални практики за ПМП - Враца","111"]
["06","06  Групови практики за ПМП - Враца","131"]
["06","06  Индивидуални практики за СМП - Враца","211"]
["06","06  Групови практики за СМП - Враца","231"]
["06","06  Медицински центрове - Враца","251"]
["06","06  Медико-дентални центрове - Враца","270"]
["06","06  Диагностично-консултативни центрове - Враца","281"]
["07","07  Индивидуални практики за ПМП - Габрово","111"]
["07","07  Групови практики за ПМП - Габрово","131"]
["07","07  Индивидуални практики за СМП - Габрово","211"]
["07","07  Групови практики за СМП - Габрово","231"]
["07","07  Медицински центрове - Габрово","251"]
["07","07  Медико-дентални центрове - Габрово","270"]
["07","07  Диагностично-консултативни центрове - Габрово","281"]
["08","08  Индивидуални практики за ПМП - Добрич","111"]
["08","08   Групови практики за ПМП - Добрич","131"]
["08","08   Индивидуални практики за СМП - Добрич","211"]
["08","08   Групови практики за СМП - Добрич","231"]
["08","08   Медицински центрове - Добрич","251"]
["08","08   Медико-дентални центрове - Добрич","270"]
["08","08   Диагностично-консултативни центрове - Добрич","281"]
["09","09   Индивидуални практики за ПМП - Кърджали","111"]
["09","09   Групови практики за ПМП - Кърджали","131"]
["09","09   Индивидуални практики за СМП - Кърджали","211"]
["09","09   Групови практики за СМП - Кърджали","231"]
["09","09   Медицински центрове - Кърджали","251"]
["09","09   Медико-дентални центрове - Кърджали","270"]
["09","09   Диагностично-консултативни центрове - Кърджали","281"]
["10","10   Индивидуални практики за ПМП - Кюстендил","111"]
[10,"10   Групови практики за ПМП - Кюстендил","131"]
[10,"10   Индивидуални практики за СМП - Кюстендил","211"]
[10,"10   Групови практики за СМП - Кюстендил","231"]
[10,"10   Медицински центрове - Кюстендил","251"]
[10,"10   Медико-дентални центрове - Кюстендил","270"]
[10,"10   Диагностично-консултативни центрове - Кюстендил","281"]
["11","11   Индивидуални практики за ПМП - Ловеч","111"]
[11,"11   Групови практики за ПМП - Ловеч","131"]
[11,"11   Индивидуални практики за СМП - Ловеч","211"]
[11,"11   Групови практики за СМП - Ловеч","231"]
[11,"11   Медицински центрове - Ловеч","251"]
[11,"11   Медико-дентални центрове - Ловеч","270"]
[11,"11   Диагностично-консултативни центрове - Ловеч","281"]
[12,"12   Индивидуални практики за ПМП - Монтана","111"]
[12,"12   Групови практики за ПМП - Монтана","131"]
[12,"12   Индивидуални практики за СМП - Монтана","211"]
[12,"12   Групови практики за СМП - Монтана","231"]
[12,"12   Медицински центрове - Монтана","251"]
[12,"12   Медико-дентални центрове - Монтана","270"]
[12,"12   Диагностично-консултативни центрове - Монтана","281"]
[13,"13   Индивидуални практики за ПМП - Пазарджик","111"]
[13,"13   Групови практики за ПМП - Пазарджик","131"]
[13,"13   Индивидуални практики за СМП - Пазарджик","211"]
[13,"13   Групови практики за СМП - Пазарджик","231"]
[13,"13   Медицински центрове - Пазарджик","251"]
[13,"13   Медико-дентални центрове - Пазарджик","270"]
[13,"13   Диагностично-консултативни центрове - Пазарджик","281"]
[14,"14   Индивидуални практики за ПМП - Перник","111"]
[14,"14   Групови практики за ПМП - Перник","131"]
[14,"14   Индивидуални практики за СМП - Перник","211"]
[14,"14   Групови практики за СМП - Перник","231"]
[14,"14   Медицински центрове - Перник","251"]
[14,"14   Медико-дентални центрове - Перник","270"]
[14,"14   Диагностично-консултативни центрове - Перник","281"]
[15,"15   Индивидуални практики за ПМП - Плевен","111"]
[15,"15   Групови практики за ПМП - Плевен","131"]
[15,"15   Индивидуални практики за СМП - Плевен","211"]
[15,"15   Групови практики за СМП - Плевен","231"]
[15,"15   Медицински центрове - Плевен","251"]
[15,"15   Медико-дентални центрове - Плевен","270"]
[15,"15   Диагностично-консултативни центрове - Плевен","281"]
[16,"16   Индивидуални практики за ПМП - Пловдив","111"]
[16,"16   Групови практики за ПМП - Пловдив","131"]
[16,"16   Индивидуални практики за СМП - Пловдив","211"]
[16,"16   Групови практики за СМП - Пловдив","231"]
[16,"16   Медицински центрове - Пловдив","251"]
[16,"16   Медико-дентални центрове - Пловдив","270"]
[16,"16   Диагностично-консултативни центрове - Пловдив","281"]
[17,"17   Индивидуални практики за ПМП - Разград","111"]
[17,"17   Групови практики за ПМП - Разград","131"]
[17,"17   Индивидуални практики за СМП - Разград","211"]
[17,"17   Групови практики за СМП - Разград","231"]
[17,"17   Медицински центрове - Разград","251"]
[17,"17   Медико-дентални центрове - Разград","270"]
[17,"17   Диагностично-консултативни центров - Разграде","281"]
[18,"18   Индивидуални практики за ПМП - Русе","111"]
[18,"18   Групови практики за ПМП - Русе","131"]
[18,"18   Индивидуални практики за СМП - Русе","211"]
[18,"18   Групови практики за СМП - Русе","231"]
[18,"18   Медицински центрове - Русе","251"]
[18,"18   Медико-дентални центрове - Русе","270"]
[18,"18   Диагностично-консултативни центрове - Русе","281"]
[19,"19   Индивидуални практики за ПМП - Силистра","111"]
[19,"19   Групови практики за ПМП - Силистра","131"]
[19,"19   Индивидуални практики за СМП - Силистра","211"]
[19,"19   Групови практики за СМП - Силистра","231"]
[19,"19   Медицински центрове - Силистра","251"]
[19,"19   Медико-дентални центрове - Силистра","270"]
[19,"19   Диагностично-консултативни центрове - Силистра","281"]
[20,"20   Индивидуални практики за ПМП - Сливен","111"]
[20,"20   Групови практики за ПМП - Сливен","131"]
[20,"20   Индивидуални практики за СМП - Сливен","211"]
[20,"20   Групови практики за СМП - Сливен","231"]
[20,"20   Медицински центрове - Сливен","251"]
[20,"20   Медико-дентални центрове - Сливен","270"]
[20,"20   Диагностично-консултативни центрове - Сливен","281"]
[21,"21   Индивидуални практики за ПМП - Смолян","111"]
[21,"21   Групови практики за ПМП - Смолян","131"]
[21,"21   Индивидуални практики за СМП - Смолян","211"]
[21,"21   Групови практики за СМП - Смолян","231"]
[21,"21   Медицински центрове - Смолян","251"]
[21,"21   Медико-дентални центрове - Смолян","270"]
[21,"21   Диагностично-консултативни центрове - Смолян","281"]
[22,"22   Индивидуални практики за ПМП - София (столица)","111"]
[22,"22   Групови практики за ПМП - София (столица)","131"]
[22,"22   Индивидуални практики за СМП - София (столица)","211"]
[22,"22   Групови практики за СМП - София (столица)","231"]
[22,"22   Медицински центрове - София (столица)","251"]
[22,"22   Медико-дентални центрове - София (столица)","270"]
[22,"22   Диагностично-консултативни центрове - София (столица)","281"]
[23,"23   Индивидуални практики за ПМП - София","111"]
[23,"23   Групови практики за ПМП - София","131"]
[23,"23   Индивидуални практики за СМП - София","211"]
[23,"23   Групови практики за СМП - София","231"]
[23,"23   Медицински центрове - София","251"]
[23,"23   Медико-дентални центрове - София","270"]
[23,"23   Диагностично-консултативни центрове - София","281"]
[24,"24   Индивидуални практики за ПМП - Стара Загора","111"]
[24,"24   Групови практики за ПМП - Стара Загора","131"]
[24,"24   Индивидуални практики за СМП - Стара Загора","211"]
[24,"24   Групови практики за СМП - Стара Загора","231"]
[24,"24   Медицински центрове - Стара Загора","251"]
[24,"24   Медико-дентални центрове - Стара Загора","270"]
[24,"24   Диагностично-консултативни центрове - Стара Загора","281"]
[25,"25   Индивидуални практики за ПМП - Търговище","111"]
[25,"25   Групови практики за ПМП - Търговище","131"]
[25,"25   Индивидуални практики за СМП - Търговище","211"]
[25,"25   Групови практики за СМП - Търговище","231"]
[25,"25   Медицински центрове - Търговище","251"]
[25,"25   Медико-дентални центрове - Търговище","270"]
[25,"25   Диагностично-консултативни центрове - Търговище","281"]
[26,"26   Индивидуални практики за ПМП - Хасково","111"]
[26,"26   Групови практики за ПМП - Хасково","131"]
[26,"26   Индивидуални практики за СМП - Хасково","211"]
[26,"26   Групови практики за СМП - Хасково","231"]
[26,"26   Медицински центрове - Хасково","251"]
[26,"26   Медико-дентални центрове - Хасково","270"]
[26,"26   Диагностично-консултативни центрове - Хасково","281"]
[27,"27   Индивидуални практики за ПМП - Шумен","111"]
[27,"27   Групови практики за ПМП - Шумен","131"]
[27,"27   Индивидуални практики за СМП - Шумен","211"]
[27,"27   Групови практики за СМП - Шумен","231"]
[27,"27   Медицински центрове - Шумен","251"]
[27,"27   Медико-дентални центрове - Шумен","270"]
[27,"27   Диагностично-консултативни центрове - Шумен","281"]
[28,"28   Индивидуални практики за ПМП - Ямбол","111"]
[28,"28   Групови практики за ПМП - Ямбол","131"]
[28,"28   Индивидуални практики за СМП - Ямбол","211"]
[28,"28   Групови практики за СМП - Ямбол","231"]
[28,"28   Медицински центрове - Ямбол","251"]
[28,"28   Медико-дентални центрове - Ямбол","270"]
[28,"28   Диагностично-консултативни центрове - Ямбол","281"]